[Event "1000GM Spring Break Schev-A 2024"]
[Site "San Jose"]
[Date "2024.03.31"]
[Round "2.3"]
[White "Jimenez Garcia, Emmanuel"]
[Black "Liu, Patrick"]
[Result "1-0"]
[ECO "A13"]
[WhiteElo "2421"]
[BlackElo "2068"]
[Annotator "TA"]
[PlyCount "91"]
[EventDate "2024.03.28"]
[EventType "schev"]
[EventCountry "USA"]
[SourceTitle "playchess.com"]
[Source "ChessBase"]
[SourceQuality "1"]
[TimeControl "5400+30"]

{[%evp 11,91,0,17,18,14,1,0,-42,20,0,53,53,51,50,83,87,195,186,200,187,243,251,247,225,219,214,1008,983,868,987,972,982,1328,1190,1375,1335,1296,687,684,697,692,682,724,714,729,680,795,702,688,881,855,845,833,834,1150,1147,1573,1130,1127,1147,1128,1112,2033,1990,2174,2141,2125,1945,3392,4134,4134,2273,29987,29988,29988,29989,29987,29988,29989,29990,29990,29991]} 1. Nf3 {[%emt 0:00:17]} d5 {[%emt 0:00:19]} 2. e3 {[%emt 0:00:08]} Nf6 {[%emt 0:00:11]} 3. c4 {[%emt 0:00:07]} e6 {[%emt 0:00:27]} 4. b3 {[%emt 0:00:10]} Be7 {[%emt 0:00:38]} 5. Bb2 {[%emt 0:00:20]} O-O {[%emt 0:00:30]} 6. Nc3 {[%emt 0:00:14]} b6 {[%emt 0:01:20]} 7. cxd5 {[%emt 0:01:07]} Nxd5 {[%emt 0:03:58]} 8. Qc2 {[%emt 0:01:21]} Bb7 {[%emt 0:01:09]} 9. h4 {[%emt 0:00:08] The position is equal.} Nxc3 {[%emt 0:03:36]} (9... Nf6 $15) 10. dxc3 {[%emt 0:02:29]} Nd7 {[%emt 0:06:39]} ({Black should try} 10... h6 $11) 11. O-O-O $14 {[%emt 0:00:30]} Bxf3 {[%emt 0:07:04]} 12. gxf3 {[%emt 0:00:14]} Qc8 {[%emt 0:00:22]} 13. Rg1 {[%emt 0:03:57] White is more active. White leaves nothing to chance now.} a5 {[%emt 0:02:15]} (13... Nf6 $16) 14. c4 $18 {[%emt 0:00:22]} Nf6 {[%emt 0:01:43][%cal Oa5a4]} 15. Bd3 {[%emt 0:01:58]} h6 {[%emt 0:01:00]} (15... Rd8 {keeps fighting.} 16. Bxh7+ Kf8) 16. Rg2 $40 {[%emt 0:03:00][%mdl 128] Hoping for Rdg1. White attacks with force.} Kh8 {[%emt 0:18:32]} 17. Rdg1 {[%emt 0:00:09]} Rg8 {[%emt 0:01:35]} 18. Bh7 {[%emt 0:00:48] A strong pair of Bishops.} g6 $2 {[%emt 0:06:55]} ({Worse is} 18... Nxh7 19. Rxg7 Rxg7 20. Rxg7 (20. Bxg7+ Kg8 $18) 20... f5 21. Rxe7+ e5 22. Qc3 (22. Bxe5+ Kg8 $18) 22... Nf6 23. Qxe5) (18... Qd7 19. a4 (19. Bxg8 Rxg8 20. f4 Qc6 $18) 19... Qd6 (19... Nxh7 20. Rxg7 Rxg7 21. Rxg7)) 19. Bxg8 {[%emt 0:01:17]} Qxg8 {[%emt 0:00:09] [#]} 20. h5 $1 {[%emt 0:00:09]} g5 {[%emt 0:02:28]} 21. f4 {[%emt 0:00:07]} a4 {[%emt 0:01:29]} 22. fxg5 {[%emt 0:00:09]} hxg5 {[%emt 0:00:29]} 23. Rxg5 {[%emt 0:00:13]} Qf8 {[%emt 0:00:11]} 24. Rg7 {[%emt 0:00:10]} Qxg7 {[%emt 0:00:39]} 25. Rxg7 {[%emt 0:00:13]} Kxg7 {[%emt 0:00:22]} 26. Qd1 {[%emt 0:07:41]} axb3 {[%emt 0:01:10]} 27. axb3 {[%emt 0:02:05]} Ra5 {[%emt 0:06:41]} 28. Qd7 {[%emt 0:02:45]} Ba3 {[%emt 0:02:06] aiming for ...Bxb2+.} 29. h6+ {[%emt 0:00:07]} Kg6 {[%emt 0:00:17]} 30. Qxc7 {[%emt 0:00:13]} Bxb2+ {[%emt 0:00:16]} 31. Kxb2 {[%emt 0:00:01][%mdl 4096] Endgame. KQ-KRN} Rf5 {[%emt 0:00:33]} 32. f4 {[%emt 0:05:02]} b5 {[%emt 0:02:59] [#]} 33. h7 $1 {[%emt 0:11:05]} Nxh7 {[%emt 0:01:13]} 34. c5 {[%emt 0:00:14]} Nf6 {[%emt 0:03:36]} 35. c6 {[%emt 0:00:17]} Rh5 {[%emt 0:06:37] [#]} 36. f5+ $1 {[%emt 0:04:41]} exf5 {[%emt 0:06:22]} (36... Kxf5 37. Qf4+) 37. Qg3+ {[%emt 0:00:46]} Ng4 {[%emt 0:00:44]} 38. c7 {[%emt 0:00:11]} Rh8 {[%emt 0:00:50]} 39. Qd6+ {[%emt 0:00:59]} f6 {[%emt 0:00:38]} 40. Qd8 {[%emt 0:00:19]} Rxd8 {[%emt 0:00:44]} 41. cxd8=Q {[%emt 0:00:07] Black must now prevent Qg8+.} Nxe3 {[%emt 0:12:14]} 42. Qe8+ {[%emt 0:00:05] White mates.} Kg5 {[%emt 0:00:00]} 43. Qxe3+ {[%emt 0:00:06]} f4 {[%emt 0:00:00]} 44. Qc5+ {[%emt 0:00:10]} Kg4 {[%emt 0:00:00]} 45. Qxb5 {[%emt 0:00:05]} f3 {[%emt 0:00:00]} 46. Qf1 {[%emt 0:00:06] Weighted Error Value: White=0.41/Black=0.45.  Mistake:       	---       	Black=5      Inaccurate:     	White=1     	Black=1      OK:         	White=2     	Black=4      Best:        	White=4     	Black=1} 1-0

[Event "1000GM Spring Break Schev-A 2024"]
[Site "San Jose"]
[Date "2024.03.31"]
[Round "2.4"]
[White "Yan, Nathan"]
[Black "Zuluaga Mancilla, Cesar"]
[Result "0-1"]
[ECO "B43"]
[WhiteElo "2185"]
[BlackElo "2217"]
[Annotator "RC"]
[PlyCount "65"]
[EventDate "2024.03.28"]
[EventType "schev"]
[EventCountry "USA"]
[SourceTitle "playchess.com"]
[Source "ChessBase"]
[SourceQuality "1"]
[TimeControl "5400+30"]

1. e4 {[%emt 0:15:48]} c5 {[%emt 0:00:07]} 2. Nf3 {[%emt 0:00:40]} e6 {[%emt 0:00:10]} 3. d4 {[%emt 0:00:23]} cxd4 {[%emt 0:00:06]} 4. Nxd4 {[%emt 0:00:12]} a6 {[%emt 0:00:04]} 5. Nc3 {[%emt 0:00:48]} Qc7 {[%emt 0:00:05]} 6. Bd3 {[%emt 0:00:12]} Nf6 {[%emt 0:00:07]} 7. Qe2 {[%emt 0:00:11]} d6 {[%emt 0:00:08]} 8. g4 {[%emt 0:00:11]} Nc6 {[%emt 0:02:17]} 9. Nxc6 {[%emt 0:00:32]} bxc6 {[%emt 0:00:22]} 10. g5 {[%emt 0:00:50]} Nd7 {[%emt 0:00:07]} 11. Bf4 {[%emt 0:00:27]} Nc5 {[%emt 0:02:47]} 12. O-O-O {[%emt 0:03:53]} Be7 {[%emt 0:06:58]} 13. h4 {[%emt 0:03:05]} a5 {[%emt 0:02:36]} 14. h5 {[%emt 0:10:59]} e5 {[%emt 0:03:04]} 15. Be3 {[%emt 0:00:24]} Nxd3+ {[%emt 0:02:01]} 16. cxd3 {[%emt 0:01:58]} a4 {[%emt 0:00:18]} 17. Qc2 {[%emt 0:04:18]} Qa5 {[%emt 0:00:40]} 18. Rdg1 {[%emt 0:03:55]} Be6 {[%emt 0:04:46]} 19. g6 {[%emt 0:08:30]} fxg6 {[%emt 0:01:36]} 20. hxg6 {[%emt 0:04:14]} h6 {[%emt 0:00:06]} 21. d4 {[%emt 0:03:49]} a3 {[%emt 0:02:03]} 22. b3 {[%emt 0:01:20]} exd4 {[%emt 0:04:11]} 23. Bxd4 {[%emt 0:00:33]} O-O {[%emt 0:00:10]} 24. Ne2 {[%emt 0:06:56]} Rf3 {[%emt 0:05:23]} 25. Be3 {[%emt 0:07:22]} Bf6 {[%emt 0:06:51]} 26. Nf4 {[%emt 0:04:23]} Qe5 {[%emt 0:01:14]} 27. Nxe6 {[%emt 0:00:58]} Qxe6 {[%emt 0:00:05]} 28. Rh5 {[%emt 0:07:41]} d5 {[%emt 0:16:02]} 29. exd5 {[%emt 0:03:07]} cxd5 {[%emt 0:00:06]} 30. Qd2 {[%emt 0:00:10]} Rc8+ {[%emt 0:00:58]} 31. Kd1 {[%emt 0:00:15]} d4 {[%emt 0:02:27]} 32. Bxh6 {[%emt 0:02:15]} gxh6 {[%emt 0:00:33]} 33. Qxh6 {[%emt 0:01:22]} 0-1

[Event "1000GM Spring Break Schev-A 2024"]
[Site "San Jose"]
[Date "2024.03.31"]
[Round "2.5"]
[White "Tang, Dylan"]
[Black "Garcia Guerrero, Isaac Antonio"]
[Result "1/2-1/2"]
[ECO "B45"]
[WhiteElo "2152"]
[BlackElo "2300"]
[Annotator "RC"]
[PlyCount "75"]
[EventDate "2024.03.28"]
[EventType "schev"]
[EventCountry "USA"]
[SourceTitle "playchess.com"]
[Source "ChessBase"]
[SourceQuality "1"]
[TimeControl "5400+30"]

1. e4 {[%emt 0:00:40]} c5 {[%emt 0:00:33]} 2. Nf3 {[%emt 0:01:49]} e6 {[%emt 0:00:12]} 3. d4 {[%emt 0:00:06]} cxd4 {[%emt 0:00:05]} 4. Nxd4 {[%emt 0:00:08]} Nf6 {[%emt 0:00:07]} 5. Nc3 {[%emt 0:00:05]} Nc6 {[%emt 0:00:07]} 6. Ndb5 {[%emt 0:00:04]} Bb4 {[%emt 0:00:16]} 7. a3 {[%emt 0:00:16]} Bxc3+ {[%emt 0:00:06]} 8. Nxc3 {[%emt 0:00:04]} d5 {[%emt 0:00:11]} 9. exd5 {[%emt 0:00:04]} exd5 {[%emt 0:00:06]} 10. Bd3 {[%emt 0:00:31]} O-O {[%emt 0:00:09]} 11. O-O {[%emt 0:00:20]} d4 {[%emt 0:00:09]} 12. Ne2 {[%emt 0:02:37]} Bg4 {[%emt 0:00:34]} 13. f3 {[%emt 0:00:52]} Bh5 {[%emt 0:00:18]} 14. Bg5 {[%emt 0:01:34]} Bg6 {[%emt 0:02:02]} 15. Bh4 {[%emt 0:11:30]} Qd6 {[%emt 0:06:09]} 16. Bg3 {[%emt 0:03:22]} Qd7 {[%emt 0:01:25]} 17. b4 {[%emt 0:07:38]} a6 {[%emt 0:10:27]} 18. c3 {[%emt 0:04:25]} Rad8 {[%emt 0:04:04]} 19. Bxg6 {[%emt 0:07:11]} hxg6 {[%emt 0:00:13]} 20. cxd4 {[%emt 0:04:09]} Nxd4 {[%emt 0:02:07]} 21. Nxd4 {[%emt 0:04:21]} Qxd4+ {[%emt 0:00:13]} 22. Qxd4 {[%emt 0:00:04]} Rxd4 {[%emt 0:00:12]} 23. Rac1 {[%emt 0:00:05]} Rfd8 {[%emt 0:03:52]} 24. Rc7 {[%emt 0:01:02]} R4d7 {[%emt 0:01:34]} 25. Rfc1 {[%emt 0:00:21]} Nd5 {[%emt 0:00:26]} 26. Rxd7 {[%emt 0:01:45]} Rxd7 {[%emt 0:01:16]} 27. Rc8+ {[%emt 0:00:19]} Kh7 {[%emt 0:00:14]} 28. Kf2 {[%emt 0:01:07]} g5 {[%emt 0:02:39]} 29. Rc5 {[%emt 0:03:13]} f6 {[%emt 0:01:09]} 30. Rc4 {[%emt 0:04:24]} Kg6 {[%emt 0:03:22]} 31. Rd4 {[%emt 0:03:58]} Kf5 {[%emt 0:01:07]} 32. h4 {[%emt 0:01:15]} gxh4 {[%emt 0:01:37]} 33. Bxh4 {[%emt 0:00:22]} Ke6 {[%emt 0:02:19]} 34. Re4+ {[%emt 0:02:07]} Kf7 {[%emt 0:01:10]} 35. Rd4 {[%emt 0:00:22]} Ke6 {[%emt 0:00:34]} 36. Re4+ {[%emt 0:00:05]} Kf7 {[%emt 0:00:39]} 37. Rd4 {[%emt 0:00:07]} Ke6 {[%emt 0:00:39]} 38. Re4+ {[%emt 0:00:05]} 1/2-1/2

[Event "1000GM Spring Break Schev-A 2024"]
[Site "San Jose"]
[Date "2024.03.31"]
[Round "3.1"]
[White "Rajaram, Rohan"]
[Black "Alarcon Bahamondez, Roberto Ignacio"]
[Result "0-1"]
[ECO "A62"]
[WhiteElo "2198"]
[BlackElo "2335"]
[Annotator "RC"]
[PlyCount "100"]
[EventDate "2024.03.28"]
[EventType "schev"]
[EventCountry "USA"]
[SourceTitle "playchess.com"]
[Source "ChessBase"]
[SourceQuality "1"]
[TimeControl "5400+30"]

1. d4 {[%emt 0:00:09]} Nf6 {[%emt 0:00:36]} 2. c4 {[%emt 0:00:16]} e6 {[%emt 0:00:09]} 3. g3 {[%emt 0:00:11]} c5 {[%emt 0:00:13]} 4. d5 {[%emt 0:00:12]} exd5 {[%emt 0:00:19]} 5. cxd5 {[%emt 0:00:08]} d6 {[%emt 0:00:06]} 6. Bg2 {[%emt 0:00:07]} g6 {[%emt 0:00:13]} 7. Nc3 {[%emt 0:00:07]} Bg7 {[%emt 0:00:25]} 8. Nf3 {[%emt 0:00:13]} Qe7 {[%emt 0:01:11]} 9. O-O {[%emt 0:01:11]} O-O {[%emt 0:02:58]} 10. Nd2 {[%emt 0:05:53]} Nbd7 {[%emt 0:13:21]} 11. Nc4 {[%emt 0:04:06]} Ne5 12. Nxe5 {[%emt 0:02:36]} Qxe5 {[%emt 0:06:06]} 13. Bf4 {[%emt 0:01:00]} Qe7 {[%emt 0:00:33]} 14. Re1 {[%emt 0:06:11]} Bd7 {[%emt 0:08:17]} 15. a4 {[%emt 0:02:01]} a6 {[%emt 0:01:52]} 16. a5 {[%emt 0:02:56]} Ng4 {[%emt 0:06:27]} 17. h3 {[%emt 0:10:53]} Ne5 {[%emt 0:04:25]} 18. Qb3 Rab8 {[%emt 0:52:19]} 19. Kh2 {[%emt 1:01:50]} Qd8 {[%emt 0:00:30]} 20. Bxe5 {[%emt 0:00:00]} Bxe5 {[%emt 0:00:00]} 21. f4 {[%emt 0:00:00]} Bg7 {[%emt 0:00:00]} 22. e4 {[%emt 0:00:00]} Re8 {[%emt 0:00:00]} 23. Qc2 {[%emt 0:00:00]} Qc7 {[%emt 0:00:00]} 24. Bf1 {[%emt 0:00:00]} Bd4 {[%emt 0:00:00]} 25. Red1 {[%emt 0:00:00]} Qd8 {[%emt 0:00:00]} 26. Ra2 {[%emt 0:00:00]} Bg7 {[%emt 0:00:00]} 27. Bd3 {[%emt 0:00:00]} Qc8 {[%emt 0:04:00]} 28. Qg2 {[%emt 0:00:00]} f5 {[%emt 0:00:00]} 29. Re1 {[%emt 0:00:00]} c4 {[%emt 0:00:00]} 30. Bc2 {[%emt 0:00:00]} Qc5 {[%emt 0:00:00]} 31. Re2 {[%emt 0:00:00]} Re7 {[%emt 0:00:00]} 32. Ra1 {[%emt 0:00:00]} Rbe8 {[%emt 0:00:00]} 33. Rae1 {[%emt 0:00:00]} Bxc3 {[%emt 0:00:00]} 34. bxc3 {[%emt 0:00:00]} fxe4 {[%emt 0:00:00]} 35. Rxe4 {[%emt 0:00:00]} Rxe4 {[%emt 0:00:00]} 36. Rxe4 {[%emt 0:00:00]} Rxe4 {[%emt 0:00:00]} 37. Bxe4 {[%emt 0:00:00]} Qxa5 {[%emt 0:00:00]} 38. Qe2 {[%emt 0:00:00]} Qxc3 {[%emt 0:00:00]} 39. Bg2 {[%emt 0:00:00]} Kf7 {[%emt 0:00:00]} 40. h4 {[%emt 0:00:00]} b5 {[%emt 0:00:00]} 41. Bh3 {[%emt 0:00:00]} Bxh3 {[%emt 0:00:00]} 42. Kxh3 {[%emt 0:00:00]} Qf6 {[%emt 0:00:00]} 43. Qe3 {[%emt 0:00:00]} Qf5+ {[%emt 0:00:00]} 44. Kh2 {[%emt 0:00:00]} Qc8 {[%emt 0:00:00]} 45. Qa7+ {[%emt 0:00:00]} Kg8 {[%emt 0:00:00]} 46. Qe3 {[%emt 0:00:00]} c3 {[%emt 0:00:00]} 47. Qc1 {[%emt 0:00:00]} c2 {[%emt 0:00:00]} 48. Kg2 {[%emt 0:00:00]} b4 {[%emt 0:00:00]} 49. Kh2 {[%emt 0:00:00]} b3 {[%emt 0:00:00]} 50. Kg2 {[%emt 0:00:00]} b2 {[%emt 0:00:00]} 0-1

[Event "1000GM Spring Break Schev-A 2024"]
[Site "San Jose"]
[Date "2024.03.31"]
[Round "3.2"]
[White "Sivakumar, Shaashwath"]
[Black "Jimenez Garcia, Emmanuel"]
[Result "1-0"]
[ECO "A62"]
[WhiteElo "2277"]
[BlackElo "2421"]
[Annotator "TA"]
[PlyCount "59"]
[EventDate "2024.03.28"]
[EventType "schev"]
[EventCountry "USA"]
[SourceTitle "playchess.com"]
[Source "ChessBase"]
[SourceQuality "1"]
[TimeControl "5400+30"]

{[%evp 19,59,35,27,18,29,34,42,37,35,28,48,29,54,57,94,96,97,101,110,104,96,105,93,108,94,100,110,110,263,258,237,258,249,228,400,386,409,408,507,516,613,591]} 1. d4 Nf6 {[%emt 0:00:26]} 2. c4 {[%emt 0:00:09]} e6 {[%emt 0:00:05]} 3. g3 {[%emt 0:00:05]} c5 {[%emt 0:00:43]} 4. d5 {[%emt 0:00:05]} d6 {[%emt 0:00:06]} 5. Nc3 {[%emt 0:00:03]} exd5 {[%emt 0:00:05]} 6. cxd5 {[%emt 0:00:04]} g6 {[%emt 0:00:11]} 7. Bg2 {[%emt 0:00:04]} Bg7 {[%emt 0:00:05]} 8. Nf3 {[%emt 0:00:05]} O-O {[%emt 1:32:49]} 9. O-O {[%emt 0:00:07]} Re8 {[%emt 0:00:00]} 10. Bf4 {[%emt 1:34:48]} Na6 {[%emt 0:01:00]} 11. Re1 {[%emt 0:00:30]} Bf5 {[%emt 0:00:30]} 12. Nd2 {[%emt 0:00:30][%cal Bf3d2,Bd2c4,Bc4d6,Bd6f5][%mdl 32]} Nh5 {[%emt 0:00:30]} 13. e4 {[%emt 0:00:30] White is slightly better.} Nxf4 {[%emt 0:00:00]} 14. gxf4 {[%emt 0:00:30]} Bd7 {[%emt 0:01:00]} 15. Nc4 {[%emt 0:00:30]} Qf6 {[%emt 0:00:30]} 16. e5 $1 {[%emt 0:00:30]} Qxf4 {[%emt 0:00:00][%cal Re8e5] Strongly threatening ...Rxe5.} 17. Re4 {[%emt 0:00:30]} Qh6 {[%emt 0:01:00]} 18. e6 {[%emt 0:00:30]} fxe6 {[%emt 0:00:00]} 19. Nxd6 {[%emt 0:00:30] dxe6 is the strong threat. A dynamic duo of knights.} Re7 {[%emt 0:01:00]} 20. dxe6 $1 {[%emt 0:00:30]} (20. Nxb7 $6 Bd4 $14) 20... Bc6 {[%emt 0:00:30][%cal Og7c3] Threatens to win with ...Bxc3!} 21. Nd5 $36 {[%emt 0:00:00][%mdl 2048] White has strong initiative. Really sharp!} Bxd5 {[%emt 0:00:00]} 22. Qxd5 {[%emt 0:00:00]} Bd4 {[%emt 0:01:00][%cal Oa6c7] [#]} 23. Rg4 $1 {[%emt 0:00:00][%cal Od6f5] Hoping for Nf5! White is more active.} (23. Nxb7 Qd2 (23... Nb4 $2 24. Qd6 $18) 24. Qd6 Bxf2+ (24... Rxb7 $2 25. Rxd4 cxd4 26. Bxb7 $18) 25. Kh1 Qxd6 26. Nxd6 c4 $18) 23... Nb4 $2 {[%emt 0:00:00] [#]} (23... Rf8 $16 {was worth a try.}) 24. Nf5 $1 $18 {[%emt 0:00:00]} Nxd5 {[%emt 0:00:00]} 25. Nxh6+ {[%emt 0:00:00]} Kg7 {[%emt 0:00:00]} 26. Nf5+ {[%emt 0:00:00]} Kf6 $2 {[%emt 0:00:00]} (26... Kh8) 27. Nxd4 {[%emt 0:00:00]} ({Less strong is} 27. Nxe7 Nxe7 28. Re1 (28. Bxb7 Rb8 $16) 28... Nf5 $18) 27... h5 {[%emt 0:00:00]} 28. Rg3 {[%emt 0:00:00]} Nf4 {[%emt 0:00:00]} 29. Rf3 {[%emt 0:00:00]} Kg5 {[%emt 0:00:00][%cal Of4g2] [#]} 30. h4+ $1 {[%emt 0:00:00] Black did not feel at home in the position after the opening.   Weighted Error Value: White=0.00 (flawless) /Black=0.40.  Mistake:       	---       	Black=2      Inaccurate:     	---       	Black=1      OK:         	White=8     	Black=8      Best:        	White=5     	Black=1      Strong:       	White=4     	---} 1-0

[Event "1000GM Spring Break Schev-A 2024"]
[Site "San Jose"]
[Date "2024.03.31"]
[Round "3.3"]
[White "Zuluaga Mancilla, Cesar"]
[Black "Liu, Patrick"]
[Result "0-1"]
[ECO "D30"]
[WhiteElo "2217"]
[BlackElo "2068"]
[Annotator "RC"]
[PlyCount "104"]
[EventDate "2024.03.28"]
[EventType "schev"]
[EventCountry "USA"]
[SourceTitle "playchess.com"]
[Source "ChessBase"]
[SourceQuality "1"]
[TimeControl "5400+30"]

1. d4 {[%emt 0:02:43]} Nf6 {[%emt 0:01:28]} 2. c4 {[%emt 0:00:08]} c6 {[%emt 0:00:10]} 3. Nf3 {[%emt 0:00:44]} d5 {[%emt 0:00:03]} 4. Nbd2 {[%emt 0:00:35]} e6 {[%emt 0:01:36]} 5. Qc2 {[%emt 0:00:52]} Nbd7 {[%emt 0:03:06]} 6. e3 {[%emt 0:01:27]} Be7 {[%emt 0:02:37]} 7. b3 {[%emt 0:00:09]} O-O {[%emt 0:02:25]} 8. Bb2 {[%emt 0:02:05]} b6 {[%emt 0:01:10]} 9. cxd5 {[%emt 0:03:30]} cxd5 {[%emt 0:01:14]} 10. Rc1 {[%emt 0:02:35]} Bb7 {[%emt 0:01:15]} 11. Qb1 {[%emt 0:00:24]} Ne4 {[%emt 0:06:31]} 12. Nxe4 {[%emt 0:01:01]} dxe4 {[%emt 0:02:32]} 13. Nd2 {[%emt 0:00:02]} Bb4 {[%emt 0:07:14]} 14. Rc2 {[%emt 0:01:10]} Qe7 {[%emt 0:03:43]} 15. Bc4 {[%emt 0:10:30]} Rac8 {[%emt 0:08:20]} 16. O-O {[%emt 0:01:04]} Bd6 {[%emt 0:02:49]} 17. Rfc1 {[%emt 0:02:08]} f5 {[%emt 0:03:08]} 18. Nf1 {[%emt 0:07:35]} Nf6 {[%emt 0:01:48]} 19. Be2 {[%emt 0:00:49]} Rcd8 {[%emt 0:04:58]} 20. Re1 {[%emt 0:12:41]} Nd5 {[%emt 0:01:28]} 21. Bc4 {[%emt 0:05:13]} h6 {[%emt 0:01:30]} 22. a3 {[%emt 0:01:02]} Kh8 {[%emt 0:03:10]} 23. b4 {[%emt 0:01:26]} Qg5 {[%emt 0:04:08]} 24. Ng3 {[%emt 0:15:13]} h5 {[%emt 0:02:45]} 25. Qd1 {[%emt 0:00:06]} h4 {[%emt 0:03:02]} 26. Nh5 {[%emt 0:05:08]} g6 {[%emt 0:09:56]} 27. Bxd5 {[%emt 0:11:01]} exd5 {[%emt 0:02:11]} 28. Nf4 {[%emt 0:00:14]} Qf6 {[%emt 0:00:50]} 29. b5 {[%emt 0:01:01]} g5 {[%emt 0:00:50]} 30. Nh3 {[%emt 0:03:04]} Qg6 {[%emt 0:01:22]} 31. Bc3 {[%emt 0:02:32]} Bb8 {[%emt 0:01:25]} 32. Bb4 {[%emt 0:00:42]} Rf7 {[%emt 0:00:14]} 33. f4 {[%emt 0:01:20]} exf3 {[%emt 0:03:03]} 34. gxf3 {[%emt 0:00:12]} Bc8 {[%emt 0:03:45]} 35. Rg2 {[%emt 0:03:32]} f4 {[%emt 0:02:07]} 36. Nxg5 {[%emt 0:01:59]} Rg7 {[%emt 0:00:08]} 37. Kh1 {[%emt 0:00:57]} h3 {[%emt 0:00:40]} 38. Rgg1 {[%emt 0:00:10]} Qf6 {[%emt 0:00:43]} 39. exf4 {[%emt 0:00:57]} Bxf4 {[%emt 0:00:43]} 40. Re5 {[%emt 0:01:39]} Rdg8 {[%emt 0:03:18]} 41. Bd2 {[%emt 0:00:40]} Rxg5 {[%emt 0:07:35]} 42. Rgxg5 {[%emt 0:00:20]} Rxg5 {[%emt 0:00:00]} 43. Re8+ {[%emt 0:00:12]} Rg8 {[%emt 0:00:00]} 44. Rxg8+ {[%emt 0:00:07]} Kxg8 {[%emt 0:00:00]} 45. Qc1 {[%emt 0:00:10]} Bxd2 {[%emt 0:02:00]} 46. Qxc8+ {[%emt 0:00:05]} Kg7 {[%emt 0:00:00]} 47. Qxh3 {[%emt 0:00:27]} Qxd4 {[%emt 0:00:00]} 48. Qd7+ {[%emt 0:00:16]} Kf6 {[%emt 0:00:00]} 49. Qd8+ {[%emt 0:01:14]} Kf5 {[%emt 0:00:00]} 50. Qf8+ {[%emt 0:01:08]} Qf6 {[%emt 0:00:00]} 51. Qc8+ {[%emt 0:00:04]} Kf4 {[%emt 0:00:00]} 52. Kg2 {[%emt 0:01:13]} Qg6+ {[%emt 0:00:00]} 0-1

[Event "1000GM Spring Break Schev-A 2024"]
[Site "San Jose"]
[Date "2024.03.31"]
[Round "3.4"]
[White "Garcia Guerrero, Isaac Antonio"]
[Black "Yan, Nathan"]
[Result "1/2-1/2"]
[ECO "D02"]
[WhiteElo "2300"]
[BlackElo "2185"]
[Annotator "RC"]
[PlyCount "54"]
[EventDate "2024.03.28"]
[EventType "schev"]
[EventCountry "USA"]
[SourceTitle "playchess.com"]
[Source "ChessBase"]
[SourceQuality "1"]
[TimeControl "5400+30"]

1. d4 {[%emt 0:01:11]} d5 {[%emt 0:06:58]} 2. Nf3 {[%emt 0:01:47]} e6 {[%emt 0:00:29]} 3. Bf4 {[%emt 0:02:47]} Nf6 {[%emt 0:00:34]} 4. Nbd2 {[%emt 0:01:04]} c5 {[%emt 0:00:20]} 5. e3 {[%emt 0:00:10]} Nc6 {[%emt 0:00:08]} 6. c3 {[%emt 0:00:16]} cxd4 {[%emt 0:00:31]} 7. exd4 {[%emt 0:00:21]} Nh5 {[%emt 0:00:21]} 8. Bg5 {[%emt 0:04:37]} f6 {[%emt 0:00:38]} 9. Be3 {[%emt 0:07:07]} Bd6 {[%emt 0:00:23]} 10. Nh4 {[%emt 0:03:54]} g6 {[%emt 0:01:40]} 11. g3 {[%emt 0:01:59]} O-O {[%emt 0:03:26]} 12. Bg2 {[%emt 0:03:49]} Ne7 {[%emt 0:06:04]} 13. O-O {[%emt 0:05:02]} Ng7 {[%emt 0:04:35]} 14. f4 {[%emt 0:02:24]} b6 {[%emt 0:07:23]} 15. Re1 {[%emt 0:04:33]} Bb7 {[%emt 0:02:02]} 16. a4 {[%emt 0:06:00]} Qd7 {[%emt 0:04:06]} 17. a5 {[%emt 0:09:40]} Rae8 {[%emt 0:04:04]} 18. axb6 {[%emt 0:04:05]} axb6 {[%emt 0:00:07]} 19. Qb3 {[%emt 0:00:51]} Qc7 {[%emt 0:03:21]} 20. Nf1 {[%emt 0:01:49]} h6 {[%emt 0:09:17]} 21. Qc2 {[%emt 0:04:01]} Kf7 {[%emt 0:13:01]} 22. Qf2 {[%emt 0:05:19]} Kg8 {[%emt 0:03:39]} 23. Qc2 {[%emt 0:29:14]} g5 {[%emt 0:28:53]} 24. fxg5 {[%emt 0:00:30]} fxg5 {[%emt 0:00:30]} 25. Ng6 Nxg6 26. Qxg6 Qf7 {[%emt 0:01:00]} 27. Qc2 {[%emt 0:01:30]} Qc7 {[%emt 0:00:30]} 1/2-1/2

[Event "1000GM Spring Break Schev-A 2024"]
[Site "San Jose"]
[Date "2024.03.31"]
[Round "3.5"]
[White "Tang, Dylan"]
[Black "Arenas, David"]
[Result "1/2-1/2"]
[ECO "B72"]
[WhiteElo "2152"]
[BlackElo "2368"]
[Annotator "RC"]
[PlyCount "59"]
[EventDate "2024.03.28"]
[EventType "schev"]
[EventCountry "USA"]
[SourceTitle "playchess.com"]
[Source "ChessBase"]
[SourceQuality "1"]
[TimeControl "5400+30"]

1. e4 {[%emt 0:00:49]} c5 {[%emt 0:03:00]} 2. Nf3 {[%emt 0:00:11]} d6 {[%emt 0:00:04]} 3. d4 {[%emt 0:00:05]} Nf6 {[%emt 0:00:06]} 4. Nc3 {[%emt 0:00:05]} cxd4 {[%emt 0:00:04]} 5. Nxd4 {[%emt 0:00:11]} g6 {[%emt 0:00:24]} 6. Be3 {[%emt 0:01:10]} Nc6 {[%emt 0:00:08]} 7. f3 {[%emt 0:00:32]} h5 {[%emt 0:00:12]} 8. Qd2 {[%emt 0:02:03]} Nxd4 {[%emt 0:00:24]} 9. Bxd4 {[%emt 0:00:53]} Bh6 {[%emt 0:00:07]} 10. Bb5+ {[%emt 0:04:41]} Bd7 {[%emt 0:08:24]} 11. Qe2 {[%emt 0:03:31]} Bc6 {[%emt 0:05:07]} 12. Rd1 {[%emt 0:08:51]} Bg7 {[%emt 0:03:44]} 13. e5 {[%emt 0:09:40]} dxe5 {[%emt 0:01:27]} 14. Qxe5 {[%emt 0:00:16]} O-O {[%emt 0:03:07]} 15. Bxc6 {[%emt 0:03:29]} bxc6 {[%emt 0:00:15]} 16. O-O {[%emt 0:00:20]} Ne8 {[%emt 0:13:55]} 17. Qc5 {[%emt 0:02:04]} Qb6 {[%emt 0:03:43]} 18. Ne4 {[%emt 0:08:42]} Bxd4+ {[%emt 0:00:27]} 19. Rxd4 {[%emt 0:02:03]} Ng7 {[%emt 0:01:41]} 20. Rd7 {[%emt 0:03:01]} Ne6 {[%emt 0:02:07]} 21. Qxb6 {[%emt 0:01:51]} axb6 {[%emt 0:00:02]} 22. a3 {[%emt 0:01:16]} Rfe8 {[%emt 0:00:15]} 23. Rfd1 {[%emt 0:00:36]} Kf8 {[%emt 0:07:04]} 24. h4 {[%emt 0:03:11]} Reb8 {[%emt 0:03:23]} 25. Kf2 {[%emt 0:03:34]} Ra4 {[%emt 0:03:10]} 26. Ng5 {[%emt 0:03:25]} Nc5 {[%emt 0:10:38]} 27. R7d4 {[%emt 0:08:26]} Rxd4 {[%emt 0:01:47]} 28. Rxd4 {[%emt 0:00:10]} f6 {[%emt 0:00:15]} 29. Ne4 {[%emt 0:00:22]} Nxe4+ {[%emt 0:01:25]} 30. Rxe4 {[%emt 0:00:19]} 1/2-1/2